[Event "Titled Tuesday Blitz November 01 Late 2022"]
[White "Lehtosaari, Mauri"]
[Black "Averjanov, Alexey"]
[WhiteFideId "501999"]
[BlackFideId "14109867"]
[WhiteElo "2508"]
[BlackElo "2664"]
[Result "1/2-1/2"]
[Round "05"]
[TimeControl "180+1"]
[Date "2022.11.02"]
[WhiteClock "0:00:33"]
[BlackClock "0:01:18"]

1. d4 {[%clk 0:03:00]}  d5 {[%clk 0:02:59]} 2. Nf3 {[%clk 0:02:57]}  Nf6 {[%clk 0:02:59]} 3. Bf4 {[%clk 0:02:57]}  e6 {[%clk 0:02:59]} 4. e3 {[%clk 0:02:57]}  c5 {[%clk 0:02:59]} 5. c3 {[%clk 0:02:57]}  Bd6 {[%clk 0:02:59]} 6. Bg3 {[%clk 0:02:57]}  Qc7 {[%clk 0:02:59]} 7. Nbd2 {[%clk 0:02:57]}  Nbd7 {[%clk 0:02:59]} 8. Bd3 {[%clk 0:02:53]}  O-O {[%clk 0:02:59]} 9. O-O {[%clk 0:02:35]}  e5 {[%clk 0:02:59]} 10. dxe5 {[%clk 0:02:34]}  Nxe5 {[%clk 0:02:59]} 11. Nxe5 {[%clk 0:02:29]}  Bxe5 {[%clk 0:03:00]} 12. Bxe5 {[%clk 0:02:27]}  Qxe5 {[%clk 0:03:01]} 13. h3 {[%clk 0:02:22]}  b6 {[%clk 0:03:01]} 14. Re1 {[%clk 0:02:18]}  Bb7 {[%clk 0:03:00]} 15. Qa4 {[%clk 0:02:15]}  Qc7 {[%clk 0:02:51]} 16. Qh4 {[%clk 0:02:11]}  Rfe8 {[%clk 0:02:48]} 17. e4 {[%clk 0:01:48]}  dxe4 {[%clk 0:02:46]} 18. Nxe4 {[%clk 0:01:48]}  Nxe4 {[%clk 0:02:46]} 19. Bxe4 {[%clk 0:01:48]}  Bxe4 {[%clk 0:02:45]} 20. Rxe4 {[%clk 0:01:48]}  Qd7 {[%clk 0:02:45]} 21. Rae1 {[%clk 0:01:47]}  Rxe4 {[%clk 0:02:41]} 22. Qxe4 {[%clk 0:01:48]}  Rd8 {[%clk 0:02:39]} 23. a3 {[%clk 0:01:44]}  g6 {[%clk 0:02:39]} 24. h4 {[%clk 0:01:37]}  h5 {[%clk 0:02:38]} 25. g3 {[%clk 0:01:37]}  Qd6 {[%clk 0:02:35]} 26. Qe7 {[%clk 0:01:26]}  Rd7 {[%clk 0:02:24]} 27. Qe8+ {[%clk 0:01:23]}  Kg7 {[%clk 0:02:24]} 28. Qe4 {[%clk 0:01:22]}  a5 {[%clk 0:02:18]} 29. Kg2 {[%clk 0:01:16]}  Qd5 {[%clk 0:02:12]} 30. Qxd5 {[%clk 0:01:14]}  Rxd5 {[%clk 0:02:13]} 31. Re2 {[%clk 0:01:14]}  Kf6 {[%clk 0:02:12]} 32. Kf3 {[%clk 0:01:15]}  Kf5 {[%clk 0:02:11]} 33. Re7 {[%clk 0:01:09]}  f6 {[%clk 0:02:11]} 34. Rb7 {[%clk 0:01:09]}  Rd6 {[%clk 0:02:10]} 35. Ke3 {[%clk 0:01:06]}  g5 {[%clk 0:02:08]} 36. Rg7 {[%clk 0:00:59]}  Kg4 {[%clk 0:02:07]} 37. Rg8 {[%clk 0:00:57]}  Re6+ {[%clk 0:02:05]} 38. Kd3 {[%clk 0:00:54]}  Kf5 {[%clk 0:01:57]} 39. b4 {[%clk 0:00:50]}  axb4 {[%clk 0:01:56]} 40. axb4 {[%clk 0:00:50]}  cxb4 {[%clk 0:01:56]} 41. cxb4 {[%clk 0:00:51]}  b5 {[%clk 0:01:41]} 42. Rh8 {[%clk 0:00:47]}  gxh4 {[%clk 0:01:37]} 43. Rxh5+ {[%clk 0:00:46]}  Kg6 {[%clk 0:01:34]} 44. Rxh4 {[%clk 0:00:46]}  f5 {[%clk 0:01:34]} 45. Rd4 {[%clk 0:00:46]}  Re5 {[%clk 0:01:32]} 46. f4 {[%clk 0:00:43]}  Re1 {[%clk 0:01:31]} 47. Rd6+ {[%clk 0:00:35]}  Kh5 {[%clk 0:01:31]} 48. Rb6 {[%clk 0:00:35]}  Rg1 {[%clk 0:01:28]} 49. Rxb5 {[%clk 0:00:34]}  Kg4 {[%clk 0:01:28]} 50. Rb8 {[%clk 0:00:33]}  Rxg3+ {[%clk 0:01:26]} 51. Kd4 {[%clk 0:00:33]}  Kxf4 {[%clk 0:01:26]} 52. b5 {[%clk 0:00:33]}  Rb3 {[%clk 0:01:25]} 53. b6 {[%clk 0:00:31]}  Kf3 {[%clk 0:01:25]} 54. Kc5 {[%clk 0:00:31]}  f4 {[%clk 0:01:25]} 55. b7 {[%clk 0:00:30]}  Kf2 {[%clk 0:01:24]} 56. Kc6 {[%clk 0:00:31]}  f3 {[%clk 0:01:24]} 57. Rf8 {[%clk 0:00:31]}  Ke2 {[%clk 0:01:20]} 58. Kc7 {[%clk 0:00:31]}  f2 {[%clk 0:01:19]} 59. Rxf2+ {[%clk 0:00:31]}  Kxf2 {[%clk 0:01:19]} 60. b8=Q {[%clk 0:00:32]}  Rxb8 {[%clk 0:01:18]} 61. Kxb8 {[%clk 0:00:33]} 1/2-1/2


[Site "https://www.chess.com"]

[Event "Titled Tuesday Blitz November 01 Late 2022"]
[White "Luxama, Jacques Muller"]
[Black "Rosenberg, Evan S"]
[WhiteFideId "11900113"]
[BlackFideId "2019299"]
[WhiteElo "1931"]
[BlackElo "2383"]
[Result "0-1"]
[Round "05"]
[TimeControl "180+1"]
[Date "2022.11.02"]
[WhiteClock "0:00:16"]
[BlackClock "0:00:14"]

1. d4 {[%clk 0:03:00]}  d5 {[%clk 0:02:59]} 2. c4 {[%clk 0:03:00]}  e6 {[%clk 0:02:59]} 3. Nc3 {[%clk 0:03:00]}  c5 {[%clk 0:03:00]} 4. cxd5 {[%clk 0:03:00]}  cxd4 {[%clk 0:03:01]} 5. Qxd4 {[%clk 0:02:59]}  Nc6 {[%clk 0:03:00]} 6. Qc4 {[%clk 0:02:55]}  exd5 {[%clk 0:02:55]} 7. Qxd5 {[%clk 0:02:54]}  Qc7 {[%clk 0:02:50]} 8. Nf3 {[%clk 0:02:48]}  Nf6 {[%clk 0:02:46]} 9. Qb3 {[%clk 0:02:42]}  Be6 {[%clk 0:02:43]} 10. Qa4 {[%clk 0:02:40]}  Bc5 {[%clk 0:02:35]} 11. e3 {[%clk 0:02:35]}  O-O {[%clk 0:02:34]} 12. Be2 {[%clk 0:02:34]}  Rfe8 {[%clk 0:02:27]} 13. O-O {[%clk 0:02:33]}  a6 {[%clk 0:02:15]} 14. a3 {[%clk 0:02:29]}  Rad8 {[%clk 0:02:11]} 15. b4 {[%clk 0:02:25]}  Ba7 {[%clk 0:02:10]} 16. Bb2 {[%clk 0:02:23]}  Bb8 {[%clk 0:02:08]} 17. Rfd1 {[%clk 0:02:03]}  Bg4 {[%clk 0:02:02]} 18. g3 {[%clk 0:02:02]}  h5 {[%clk 0:01:54]} 19. Rac1 {[%clk 0:01:59]}  Rxd1+ {[%clk 0:01:42]} 20. Bxd1 {[%clk 0:01:56]}  Qb6 {[%clk 0:01:38]} 21. b5 {[%clk 0:01:52]}  Rxe3 {[%clk 0:01:28]} 22. fxe3 {[%clk 0:01:33]}  Qxe3+ {[%clk 0:01:28]} 23. Kg2 {[%clk 0:01:32]}  Ba7 {[%clk 0:01:29]} 24. Qc2 {[%clk 0:01:24]}  h4 {[%clk 0:01:12]} 25. bxc6 {[%clk 0:00:54]}  h3+ {[%clk 0:01:09]} 26. Kf1 {[%clk 0:00:54]}  Bxf3 {[%clk 0:01:05]} 27. Bxf3 {[%clk 0:00:54]}  Qxf3+ {[%clk 0:01:06]} 28. Ke1 {[%clk 0:00:54]}  Qh1+ {[%clk 0:01:01]} 29. Kd2 {[%clk 0:00:53]}  Qxh2+ {[%clk 0:00:57]} 30. Ne2 {[%clk 0:00:53]}  bxc6 {[%clk 0:00:53]} 31. Qxc6 {[%clk 0:00:50]}  Qf2 {[%clk 0:00:41]} 32. Bxf6 {[%clk 0:00:46]}  Be3+ {[%clk 0:00:37]} 33. Kd3 {[%clk 0:00:42]}  Bxc1 {[%clk 0:00:36]} 34. Nxc1 {[%clk 0:00:43]}  Qxg3+ {[%clk 0:00:32]} 35. Kc2 {[%clk 0:00:42]}  gxf6 {[%clk 0:00:31]} 36. Qxf6 {[%clk 0:00:40]}  h2 {[%clk 0:00:30]} 37. Ne2 {[%clk 0:00:38]}  Qc7+ {[%clk 0:00:26]} 38. Kd2 {[%clk 0:00:37]}  h1=Q {[%clk 0:00:26]} 39. Qg5+ {[%clk 0:00:37]}  Kf8 {[%clk 0:00:26]} 40. Qf6 {[%clk 0:00:30]}  Qd5+ {[%clk 0:00:22]} 41. Ke1 {[%clk 0:00:19]}  Qca5+ {[%clk 0:00:19]} 42. Kf2 {[%clk 0:00:18]}  Qf5+ {[%clk 0:00:19]} 43. Qxf5 {[%clk 0:00:17]}  Qxf5+ {[%clk 0:00:20]} 44. Ke3 {[%clk 0:00:17]}  Qc5+ {[%clk 0:00:19]} 45. Nd4 {[%clk 0:00:18]}  Qxa3+ {[%clk 0:00:19]} 46. Ke4 {[%clk 0:00:19]}  Qb4 {[%clk 0:00:19]} 47. Kd5 {[%clk 0:00:19]}  a5 {[%clk 0:00:19]} 48. Nc6 {[%clk 0:00:18]}  Qb5+ {[%clk 0:00:19]} 49. Kd6 {[%clk 0:00:18]}  a4 {[%clk 0:00:20]} 50. Nd4 {[%clk 0:00:18]}  Qb4+ {[%clk 0:00:19]} 51. Kd5 {[%clk 0:00:18]}  a3 {[%clk 0:00:19]} 52. Nc6 {[%clk 0:00:19]}  Qb3+ {[%clk 0:00:18]} 53. Kd6 {[%clk 0:00:18]}  a2 {[%clk 0:00:19]} 54. Nd4 {[%clk 0:00:19]}  Qd3 {[%clk 0:00:17]} 55. Kc5 {[%clk 0:00:18]}  a1=Q {[%clk 0:00:16]} 56. Ne6+ {[%clk 0:00:19]}  fxe6 {[%clk 0:00:16]} 57. Kc6 {[%clk 0:00:17]}  Qd5+ {[%clk 0:00:15]} 58. Kc7 {[%clk 0:00:17]}  Qa7+ {[%clk 0:00:15]} 59. Kc8 {[%clk 0:00:16]}  Qdd7# {[%clk 0:00:14]} 0-1


[Site "https://www.chess.com"]

[Event "Titled Tuesday Blitz November 01 Late 2022"]
[White "Makarian, Rudik"]
[Black "Rustemov, Alexander"]
[WhiteFideId "44105681"]
[BlackFideId "4119002"]
[WhiteElo "2405"]
[BlackElo "2923"]
[Result "1-0"]
[Round "05"]
[TimeControl "180+1"]
[Date "2022.11.01"]
[WhiteClock "0:00:09"]
[BlackClock "0:00:07"]

1. d3 {[%clk 0:03:00]}  d5 {[%clk 0:02:59]} 2. f4 {[%clk 0:03:01]}  Nf6 {[%clk 0:02:59]} 3. Nf3 {[%clk 0:03:02]}  g6 {[%clk 0:02:59]} 4. g3 {[%clk 0:03:03]}  Bg7 {[%clk 0:03:00]} 5. Bg2 {[%clk 0:03:03]}  O-O {[%clk 0:03:00]} 6. O-O {[%clk 0:03:04]}  c5 {[%clk 0:03:00]} 7. Ne5 {[%clk 0:03:04]}  b6 {[%clk 0:02:54]} 8. e4 {[%clk 0:03:00]}  Bb7 {[%clk 0:02:53]} 9. Nc3 {[%clk 0:02:59]}  e6 {[%clk 0:02:47]} 10. Qe2 {[%clk 0:02:53]}  Nc6 {[%clk 0:02:34]} 11. Nxc6 {[%clk 0:02:53]}  Bxc6 {[%clk 0:02:34]} 12. e5 {[%clk 0:02:54]}  Ne8 {[%clk 0:02:31]} 13. Bd2 {[%clk 0:02:50]}  Qd7 {[%clk 0:02:29]} 14. g4 {[%clk 0:02:50]}  f6 {[%clk 0:02:20]} 15. g5 {[%clk 0:02:44]}  fxe5 {[%clk 0:02:06]} 16. fxe5 {[%clk 0:02:45]}  Rxf1+ {[%clk 0:02:04]} 17. Rxf1 {[%clk 0:02:46]}  Nc7 {[%clk 0:01:57]} 18. h4 {[%clk 0:02:42]}  Rf8 {[%clk 0:01:55]} 19. Rf6 {[%clk 0:02:42]}  d4 {[%clk 0:01:50]} 20. Bxc6 {[%clk 0:02:23]}  Qxc6 {[%clk 0:01:48]} 21. Ne4 {[%clk 0:02:24]}  Nd5 {[%clk 0:01:45]} 22. h5 {[%clk 0:02:21]}  gxh5 {[%clk 0:01:39]} 23. Rxf8+ {[%clk 0:02:05]}  Bxf8 {[%clk 0:01:23]} 24. Qxh5 {[%clk 0:02:04]}  Qd7 {[%clk 0:01:10]} 25. Nf6+ {[%clk 0:01:54]}  Nxf6 {[%clk 0:01:09]} 26. gxf6 {[%clk 0:01:51]}  Qf7 {[%clk 0:01:06]} 27. Qg5+ {[%clk 0:01:49]}  Qg6 {[%clk 0:01:06]} 28. Qxg6+ {[%clk 0:01:49]}  hxg6 {[%clk 0:01:06]} 29. Kg2 {[%clk 0:01:50]}  b5 {[%clk 0:01:05]} 30. Kf3 {[%clk 0:01:38]}  Kf7 {[%clk 0:01:02]} 31. b4 {[%clk 0:01:21]}  cxb4 {[%clk 0:00:57]} 32. Ke4 {[%clk 0:01:21]}  a5 {[%clk 0:00:57]} 33. Kxd4 {[%clk 0:01:20]}  Ke8 {[%clk 0:00:57]} 34. Ke4 {[%clk 0:01:06]}  Kd7 {[%clk 0:00:56]} 35. Be3 {[%clk 0:00:47]}  Kc6 {[%clk 0:00:52]} 36. Ba7 {[%clk 0:00:47]}  a4 {[%clk 0:00:30]} 37. d4 {[%clk 0:00:38]}  g5 {[%clk 0:00:26]} 38. Bc5 {[%clk 0:00:30]}  Bh6 {[%clk 0:00:18]} 39. Bxb4 {[%clk 0:00:27]}  g4 {[%clk 0:00:18]} 40. d5+ {[%clk 0:00:17]}  Kd7 {[%clk 0:00:13]} 41. f7 {[%clk 0:00:14]}  g3 {[%clk 0:00:12]} 42. Kf3 {[%clk 0:00:12]}  exd5 {[%clk 0:00:11]} 43. Kxg3 {[%clk 0:00:10]}  Ke6 {[%clk 0:00:10]} 44. f8=Q {[%clk 0:00:09]}  Bxf8 {[%clk 0:00:11]} 45. Bxf8 {[%clk 0:00:10]}  Kxe5 {[%clk 0:00:12]} 46. Kf3 {[%clk 0:00:10]}  Kd4 {[%clk 0:00:12]} 47. Bg7+ {[%clk 0:00:10]}  Kc4 {[%clk 0:00:12]} 48. Ke3 {[%clk 0:00:10]}  b4 {[%clk 0:00:12]} 49. Bb2 {[%clk 0:00:06]}  Kc5 {[%clk 0:00:06]} 50. Kd3 {[%clk 0:00:06]}  Kb5 {[%clk 0:00:06]} 51. Kd4 {[%clk 0:00:06]}  Kc6 {[%clk 0:00:07]} 52. Bc1 {[%clk 0:00:05]}  Kd6 {[%clk 0:00:07]} 53. Bd2 {[%clk 0:00:06]}  b3 {[%clk 0:00:03]} 54. cxb3 {[%clk 0:00:06]}  axb3 {[%clk 0:00:04]} 55. axb3 {[%clk 0:00:06]}  Kc6 {[%clk 0:00:05]} 56. b4 {[%clk 0:00:06]}  Kd6 {[%clk 0:00:05]} 57. b5 {[%clk 0:00:06]}  Ke6 {[%clk 0:00:03]} 58. Kc5 {[%clk 0:00:06]}  Kd7 {[%clk 0:00:03]} 59. b6 {[%clk 0:00:06]}  d4 {[%clk 0:00:02]} 60. Bf4 {[%clk 0:00:05]}  Kc8 {[%clk 0:00:02]} 61. Kc6 {[%clk 0:00:05]}  Kd8 {[%clk 0:00:01]} 62. b7 {[%clk 0:00:05]}  Ke7 {[%clk 0:00:02]} 63. b8=Q {[%clk 0:00:05]}  Ke6 {[%clk 0:00:03]} 64. Qe5+ {[%clk 0:00:06]}  Kf7 {[%clk 0:00:03]} 65. Qxd4 {[%clk 0:00:07]}  Ke6 {[%clk 0:00:03]} 66. Bd6 {[%clk 0:00:08]}  Kf5 {[%clk 0:00:04]} 67. Bb8 {[%clk 0:00:07]}  Kg6 {[%clk 0:00:05]} 68. Qd5 {[%clk 0:00:07]}  Kf6 {[%clk 0:00:05]} 69. Qe5+ {[%clk 0:00:07]}  Kg6 {[%clk 0:00:06]} 70. Kd6 {[%clk 0:00:08]}  Kf7 {[%clk 0:00:06]} 71. Qe6+ {[%clk 0:00:08]}  Kg7 {[%clk 0:00:06]} 72. Ke5 {[%clk 0:00:08]}  Kh7 {[%clk 0:00:06]} 73. Qg4 {[%clk 0:00:08]}  Kh6 {[%clk 0:00:06]} 74. Kf6 {[%clk 0:00:09]}  Kh7 {[%clk 0:00:07]} 75. Kf7 {[%clk 0:00:08]}  Kh8 {[%clk 0:00:07]} 76. Qh4# {[%clk 0:00:09]} 1-0


[Site "https://www.chess.com"]

[Event "Titled Tuesday Blitz November 01 Late 2022"]
[White "Manolache, Marius"]
[Black "Garayev, Kanan"]
[WhiteFideId "1201530"]
[BlackFideId "13406671"]
[WhiteElo "2364"]
[BlackElo "2244"]
[Result "1-0"]
[Round "05"]
[TimeControl "180+1"]
[Date "2022.11.02"]
[WhiteClock "0:01:46"]
[BlackClock "0:00:59"]

1. d4 {[%clk 0:03:00]}  d5 {[%clk 0:02:56]} 2. c4 {[%clk 0:02:59]}  dxc4 {[%clk 0:02:55]} 3. e3 {[%clk 0:02:59]}  Nf6 {[%clk 0:02:54]} 4. Bxc4 {[%clk 0:02:57]}  e6 {[%clk 0:02:54]} 5. Nf3 {[%clk 0:02:58]}  c5 {[%clk 0:02:53]} 6. O-O {[%clk 0:02:57]}  a6 {[%clk 0:02:52]} 7. b3 {[%clk 0:02:56]}  Nc6 {[%clk 0:02:50]} 8. Bb2 {[%clk 0:02:56]}  cxd4 {[%clk 0:02:48]} 9. Nxd4 {[%clk 0:02:54]}  Nxd4 {[%clk 0:02:44]} 10. Bxd4 {[%clk 0:02:54]}  Be7 {[%clk 0:02:42]} 11. Qf3 {[%clk 0:02:47]}  O-O {[%clk 0:02:39]} 12. Rd1 {[%clk 0:02:46]}  Qc7 {[%clk 0:02:38]} 13. Nd2 {[%clk 0:02:37]}  e5 {[%clk 0:02:37]} 14. Bb2 {[%clk 0:02:35]}  Bg4 {[%clk 0:02:37]} 15. Qg3 {[%clk 0:02:35]}  Bxd1 {[%clk 0:02:37]} 16. Bxe5 {[%clk 0:02:31]}  Qa5 {[%clk 0:02:34]} 17. Rxd1 {[%clk 0:02:28]}  Rad8 {[%clk 0:02:31]} 18. Bd4 {[%clk 0:02:28]}  Bd6 {[%clk 0:02:19]} 19. Qh4 {[%clk 0:02:18]}  Qf5 {[%clk 0:01:43]} 20. Nf3 {[%clk 0:02:04]}  Bc5 {[%clk 0:01:13]} 21. Bd3 {[%clk 0:01:57]}  g5 {[%clk 0:00:58]} 22. Qh6 {[%clk 0:01:47]}  Ng4 {[%clk 0:00:59]} 23. Qg7# {[%clk 0:01:46]} 1-0


[Site "https://www.chess.com"]

[Event "Titled Tuesday Blitz November 01 Late 2022"]
[White "Martinez Alcantara, Jose Eduardo"]
[Black "Azarov, Sergei"]
[WhiteFideId "3805662"]
[BlackFideId "13501470"]
[WhiteElo "2703"]
[BlackElo "2494"]
[Result "1-0"]
[Round "05"]
[TimeControl "180+1"]
[Date "2022.11.01"]
[WhiteClock "0:00:35"]
[BlackClock "0:00:02"]

1. e4 {[%clk 0:02:59]}  e5 {[%clk 0:03:00]} 2. Nf3 {[%clk 0:02:59]}  Nc6 {[%clk 0:03:00]} 3. Bb5 {[%clk 0:02:59]}  a6 {[%clk 0:02:59]} 4. Ba4 {[%clk 0:03:00]}  Nf6 {[%clk 0:03:00]} 5. O-O {[%clk 0:03:00]}  Be7 {[%clk 0:03:00]} 6. Re1 {[%clk 0:03:01]}  b5 {[%clk 0:03:01]} 7. Bb3 {[%clk 0:03:02]}  d6 {[%clk 0:03:01]} 8. c3 {[%clk 0:03:02]}  O-O {[%clk 0:03:02]} 9. h3 {[%clk 0:03:02]}  h6 {[%clk 0:03:03]} 10. d4 {[%clk 0:03:02]}  Re8 {[%clk 0:03:03]} 11. Nbd2 {[%clk 0:03:02]}  Bf8 {[%clk 0:03:03]} 12. Bc2 {[%clk 0:03:03]}  Bb7 {[%clk 0:03:03]} 13. a3 {[%clk 0:03:03]}  Nb8 {[%clk 0:02:59]} 14. b3 {[%clk 0:03:01]}  Nbd7 {[%clk 0:02:59]} 15. Bb2 {[%clk 0:03:01]}  c6 {[%clk 0:02:58]} 16. c4 {[%clk 0:03:01]}  Qc7 {[%clk 0:02:48]} 17. Rc1 {[%clk 0:02:58]}  Rad8 {[%clk 0:02:47]} 18. Bb1 {[%clk 0:02:54]}  Qb8 {[%clk 0:02:46]} 19. b4 {[%clk 0:02:49]}  exd4 {[%clk 0:02:39]} 20. cxb5 {[%clk 0:02:44]}  cxb5 {[%clk 0:02:30]} 21. Nxd4 {[%clk 0:02:44]}  d5 {[%clk 0:02:23]} 22. exd5 {[%clk 0:02:30]}  Bxd5 {[%clk 0:02:13]} 23. Nf5 {[%clk 0:02:00]}  Rxe1+ {[%clk 0:02:02]} 24. Qxe1 {[%clk 0:02:01]}  Re8 {[%clk 0:02:00]} 25. Qd1 {[%clk 0:02:02]}  Qb7 {[%clk 0:01:42]} 26. Nf3 {[%clk 0:01:52]}  Be4 {[%clk 0:01:10]} 27. Bxe4 {[%clk 0:01:37]}  Qxe4 {[%clk 0:01:07]} 28. Ng3 {[%clk 0:01:37]}  Qe6 {[%clk 0:00:51]} 29. Nd4 {[%clk 0:01:34]}  Qd5 {[%clk 0:00:50]} 30. Nc6 {[%clk 0:01:22]}  Re6 {[%clk 0:00:37]} 31. Nd4 {[%clk 0:01:16]}  Re8 {[%clk 0:00:32]} 32. Nf3 {[%clk 0:01:14]}  g6 {[%clk 0:00:22]} 33. Qxd5 {[%clk 0:01:12]}  Nxd5 {[%clk 0:00:22]} 34. Rc6 {[%clk 0:01:09]}  N7b6 {[%clk 0:00:21]} 35. Bd4 {[%clk 0:01:08]}  Re6 {[%clk 0:00:18]} 36. Rc1 {[%clk 0:01:04]}  Nc4 {[%clk 0:00:18]} 37. Ra1 {[%clk 0:01:04]}  Bg7 {[%clk 0:00:17]} 38. Bxg7 {[%clk 0:01:03]}  Kxg7 {[%clk 0:00:18]} 39. Nd4 {[%clk 0:01:03]}  Re8 {[%clk 0:00:18]} 40. Nge2 {[%clk 0:00:57]}  h5 {[%clk 0:00:16]} 41. f3 {[%clk 0:00:57]}  h4 {[%clk 0:00:15]} 42. Kf2 {[%clk 0:00:57]}  Kf6 {[%clk 0:00:13]} 43. Nc2 {[%clk 0:00:52]}  g5 {[%clk 0:00:11]} 44. Ncd4 {[%clk 0:00:51]}  Nf4 {[%clk 0:00:10]} 45. Nxf4 {[%clk 0:00:51]}  gxf4 {[%clk 0:00:11]} 46. a4 {[%clk 0:00:50]}  Rd8 {[%clk 0:00:10]} 47. Ne2 {[%clk 0:00:46]}  Kf5 {[%clk 0:00:09]} 48. axb5 {[%clk 0:00:47]}  axb5 {[%clk 0:00:10]} 49. Ra7 {[%clk 0:00:45]}  f6 {[%clk 0:00:10]} 50. Rb7 {[%clk 0:00:45]}  Rd5 {[%clk 0:00:08]} 51. Rxb5 {[%clk 0:00:44]}  Re5 {[%clk 0:00:03]} 52. Nd4+ {[%clk 0:00:43]}  Kg6 {[%clk 0:00:02]} 53. Rxe5 {[%clk 0:00:43]}  fxe5 {[%clk 0:00:03]} 54. Nb3 {[%clk 0:00:36]}  Kf5 {[%clk 0:00:03]} 55. Nc5 {[%clk 0:00:36]}  Nb6 {[%clk 0:00:02]} 56. b5 {[%clk 0:00:35]} 1-0


[Site "https://www.chess.com"]

[Event "Titled Tuesday Blitz November 01 Late 2022"]
[White "Martinez Molina, Carlos Alberto"]
[Black "Arnold, Ken"]
[WhiteFideId "5122708"]
[BlackFideId "2056836"]
[WhiteElo "2212"]
[BlackElo "2318"]
[Result "1-0"]
[Round "05"]
[TimeControl "180+1"]
[Date "2022.11.02"]
[WhiteClock "0:00:10"]
[BlackClock "0:00:17"]

1. d4 {[%clk 0:03:00]}  d5 {[%clk 0:02:59]} 2. c4 {[%clk 0:03:00]}  c6 {[%clk 0:02:59]} 3. Nc3 {[%clk 0:02:59]}  Nf6 {[%clk 0:02:59]} 4. Nf3 {[%clk 0:02:59]}  dxc4 {[%clk 0:03:00]} 5. Bg5 {[%clk 0:02:53]}  Nd5 {[%clk 0:02:57]} 6. e4 {[%clk 0:02:48]}  Nxc3 {[%clk 0:02:55]} 7. bxc3 {[%clk 0:02:49]}  Qa5 {[%clk 0:02:54]} 8. Qc2 {[%clk 0:02:46]}  Bg4 {[%clk 0:02:52]} 9. Ne5 {[%clk 0:02:35]}  Be6 {[%clk 0:02:47]} 10. Bh4 {[%clk 0:02:22]}  b5 {[%clk 0:02:42]} 11. Be2 {[%clk 0:02:14]}  f6 {[%clk 0:02:39]} 12. Nf3 {[%clk 0:02:05]}  Nd7 {[%clk 0:02:36]} 13. O-O {[%clk 0:02:04]}  Nb6 {[%clk 0:02:33]} 14. Rfb1 {[%clk 0:01:43]}  Bf7 {[%clk 0:02:25]} 15. Bg3 {[%clk 0:01:28]}  e6 {[%clk 0:02:20]} 16. Bc7 {[%clk 0:01:26]}  Rc8 {[%clk 0:02:11]} 17. Bxb6 {[%clk 0:01:22]}  Qxb6 {[%clk 0:01:54]} 18. a4 {[%clk 0:01:07]}  e5 {[%clk 0:01:44]} 19. dxe5 {[%clk 0:01:04]}  Bc5 {[%clk 0:01:43]} 20. Bf1 {[%clk 0:01:01]}  O-O {[%clk 0:01:41]} 21. exf6 {[%clk 0:00:58]}  Bh5 {[%clk 0:01:38]} 22. Bxc4+ {[%clk 0:00:54]}  Kh8 {[%clk 0:01:31]} 23. fxg7+ {[%clk 0:00:54]}  Kxg7 {[%clk 0:01:30]} 24. axb5 {[%clk 0:00:44]}  Bxf3 {[%clk 0:01:23]} 25. gxf3 {[%clk 0:00:29]}  cxb5 {[%clk 0:01:17]} 26. Rxb5 {[%clk 0:00:26]}  Qg6+ {[%clk 0:01:14]} 27. Kh1 {[%clk 0:00:21]}  Qh5 {[%clk 0:01:12]} 28. Rg1+ {[%clk 0:00:16]}  Kh8 {[%clk 0:01:11]} 29. Rg3 {[%clk 0:00:14]}  Rb8 {[%clk 0:00:53]} 30. Rxb8 {[%clk 0:00:12]}  Rxb8 {[%clk 0:00:52]} 31. Qd2 {[%clk 0:00:12]}  Qe5 {[%clk 0:00:27]} 32. Kg2 {[%clk 0:00:12]}  Qf6 {[%clk 0:00:24]} 33. Qd5 {[%clk 0:00:10]}  Qf8 {[%clk 0:00:17]} 34. Qe5+ {[%clk 0:00:10]} 1-0


[Site "https://www.chess.com"]

[Event "Titled Tuesday Blitz November 01 Late 2022"]
[White "Melkumyan, Hrant"]
[Black "Maksimovic, Bojan"]
[WhiteFideId "13302485"]
[BlackFideId "14408120"]
[WhiteElo "2604"]
[BlackElo "2447"]
[Result "1-0"]
[Round "05"]
[TimeControl "180+1"]
[Date "2022.11.01"]
[WhiteClock "0:00:25"]
[BlackClock "0:00:01"]

1. d4 {[%clk 0:02:42]}  Nf6 {[%clk 0:02:59]} 2. c4 {[%clk 0:02:42]}  g6 {[%clk 0:03:00]} 3. Nc3 {[%clk 0:02:42]}  Bg7 {[%clk 0:03:00]} 4. e4 {[%clk 0:02:41]}  d6 {[%clk 0:03:01]} 5. Be2 {[%clk 0:02:42]}  Nbd7 {[%clk 0:03:01]} 6. Nf3 {[%clk 0:02:40]}  e5 {[%clk 0:03:00]} 7. O-O {[%clk 0:02:41]}  O-O {[%clk 0:03:00]} 8. Be3 {[%clk 0:02:41]}  c6 {[%clk 0:03:01]} 9. Qc2 {[%clk 0:02:37]}  Qe7 {[%clk 0:03:01]} 10. Rad1 {[%clk 0:02:36]}  Re8 {[%clk 0:03:00]} 11. d5 {[%clk 0:02:31]}  c5 {[%clk 0:02:59]} 12. Ne1 {[%clk 0:02:31]}  Kh8 {[%clk 0:02:57]} 13. Nd3 {[%clk 0:02:31]}  Ng8 {[%clk 0:02:56]} 14. a3 {[%clk 0:02:31]}  Bh6 {[%clk 0:02:52]} 15. Bxh6 {[%clk 0:02:22]}  Nxh6 {[%clk 0:02:53]} 16. Qd2 {[%clk 0:02:23]}  Kg7 {[%clk 0:02:41]} 17. Rde1 {[%clk 0:02:23]}  f6 {[%clk 0:02:39]} 18. b4 {[%clk 0:02:22]}  b6 {[%clk 0:02:39]} 19. f4 {[%clk 0:02:14]}  exf4 {[%clk 0:02:38]} 20. Nxf4 {[%clk 0:02:11]}  Ne5 {[%clk 0:02:37]} 21. Nd1 {[%clk 0:02:05]}  cxb4 {[%clk 0:02:28]} 22. axb4 {[%clk 0:02:05]}  a5 {[%clk 0:02:28]} 23. Ne3 {[%clk 0:02:02]}  axb4 {[%clk 0:02:22]} 24. Qxb4 {[%clk 0:02:01]}  Qc7 {[%clk 0:02:22]} 25. Kh1 {[%clk 0:01:51]}  Qc5 {[%clk 0:02:20]} 26. Qd2 {[%clk 0:01:50]}  Ra3 {[%clk 0:02:17]} 27. Bd1 {[%clk 0:01:48]}  Nxc4 {[%clk 0:02:05]} 28. Nxc4 {[%clk 0:01:43]}  Qxc4 {[%clk 0:02:05]} 29. Qf2 {[%clk 0:01:25]}  Ng8 {[%clk 0:01:41]} 30. Bf3 {[%clk 0:01:20]}  Qc5 {[%clk 0:01:17]} 31. Qg3 {[%clk 0:01:20]}  Qc7 {[%clk 0:01:18]} 32. Rc1 {[%clk 0:01:19]}  Qe7 {[%clk 0:01:18]} 33. Rc6 {[%clk 0:01:12]}  b5 {[%clk 0:01:14]} 34. Rxd6 {[%clk 0:01:11]}  Kh8 {[%clk 0:01:02]} 35. Rb6 {[%clk 0:01:05]}  Qc5 {[%clk 0:00:55]} 36. Rc6 {[%clk 0:01:04]}  Qe7 {[%clk 0:00:53]} 37. Rfc1 {[%clk 0:00:57]}  Bd7 {[%clk 0:00:39]} 38. Rc7 {[%clk 0:00:58]}  Rc8 {[%clk 0:00:28]} 39. Rxc8 {[%clk 0:00:51]}  Bxc8 {[%clk 0:00:29]} 40. h3 {[%clk 0:00:41]}  Bd7 {[%clk 0:00:29]} 41. Kh2 {[%clk 0:00:35]}  Qe5 {[%clk 0:00:28]} 42. Rc7 {[%clk 0:00:31]}  Be8 {[%clk 0:00:15]} 43. d6 {[%clk 0:00:32]}  g5 {[%clk 0:00:10]} 44. Nd5 {[%clk 0:00:32]}  Qe6 {[%clk 0:00:06]} 45. Bg4 {[%clk 0:00:25]}  Rxg3 {[%clk 0:00:06]} 46. Bxe6 {[%clk 0:00:25]}  Rd3 {[%clk 0:00:04]} 47. Rc8 {[%clk 0:00:25]}  Kg7 {[%clk 0:00:01]} 48. Rxe8 {[%clk 0:00:25]} 1-0


[Site "https://www.chess.com"]